fUST/lending_fUST_20250115
["ID","MTS","AMOUNT","RATE_DAILY","PERIOD"]
[349022944,1736941845874,-500.0,0.00020272,3]
[349022946,1736941845884,-699.87,0.00020272,3]
[349022948,1736941845894,-500.0,0.00020272,3]
[349022950,1736941845903,-151.0,0.00020272,2]
[349022952,1736941845913,-500.0,0.00020272,3]
[349022954,1736941845922,-500.0,0.00020272,3]
[349022956,1736941845931,-151.0,0.00020272,2]
[349022958,1736941845941,-151.0,0.00020272,2]
[349022960,1736941845951,-216.468908,0.00020272,2]
[349022962,1736941845960,-151.0,0.00020272,2]
[349022964,1736941845970,-151.0,0.00020272,2]
[349022966,1736941845980,-260.629372,0.00020272,2]
[349022968,1736941845989,-736.84,0.00020272,3]
[349022970,1736941845999,-500.0,0.00020272,3]
[349022972,1736941846008,-151.0,0.00020272,2]
[349022974,1736941846019,-151.0,0.00020272,2]
[349022976,1736941846029,-500.0,0.00020272,3]
[349022978,1736941846039,-151.0,0.00020272,2]
[349022980,1736941846049,-151.0,0.00020272,2]
[349022982,1736941846058,-500.0,0.00020272,3]
[349022984,1736941846068,-151.0,0.00020272,2]
[349022986,1736941846078,-500.0,0.00020272,3]
[349022988,1736941846087,-687.96,0.00020272,3]
[349022990,1736941846096,-151.626861,0.00020272,2]
[349022992,1736941846106,-19334.51,0.00020272,3]
[349022994,1736941846118,-500.0,0.00020272,3]
[349022996,1736941846129,-151.0,0.00020272,2]
[349022998,1736941846139,-556.269652,0.00020272,2]
[349023000,1736941846148,-151.0,0.00020272,2]
[349023002,1736941846162,-556.269652,0.00020272,2]
[349023004,1736941846173,-887.87,0.00020272,3]
[349023006,1736941846183,-556.269652,0.00020272,2]
[349023008,1736941846193,-556.269652,0.00020272,2]
[349023010,1736941846205,-423.422106,0.00020272,2]
[349023012,1736941846215,-283.821548,0.00020272,2]
[349023014,1736941846226,-423.422106,0.00020272,2]
[349023016,1736941846235,-423.422106,0.00020272,2]
[349023019,1736941846246,-423.422106,0.00020272,2]
[349023022,1736941846255,-619.17,0.00020272,3]
[349023025,1736941846265,-500.0,0.00020272,3]
[349023026,1736941846275,-500.0,0.00020272,3]
[349023028,1736941846284,-188.263472,0.00020272,2]
[349023031,1736941846294,-188.263472,0.00020272,2]
[349023034,1736941846303,-500.0,0.00020272,3]
[349023036,1736941846311,-151.0,0.00020272,2]
[349023039,1736941846321,-151.0,0.00020272,2]
[349023042,1736941846331,-500.0,0.00020272,3]
[349023045,1736941846341,-500.0,0.00020273,3]
[349023048,1736941846350,-500.0,0.00020273,3]
[349023051,1736941846360,-500.0,0.00020273,3]
[349023054,1736941846370,-151.0,0.00020273,2]
[349023057,1736941846380,-151.0,0.00020273,2]
[349023060,1736941846389,-597.91,0.00020273,3]
[349023064,1736941846398,-151.0,0.00020273,2]
[349023066,1736941846408,-151.0,0.00020273,2]
[349023070,1736941846417,-151.0,0.00020273,2]
[349023073,1736941846426,-151.0,0.00020273,2]
[349023075,1736941846436,-151.0,0.00020273,2]
[349023077,1736941846445,-500.0,0.00020273,3]
[349023079,1736941846455,-151.0,0.00020273,2]
[349023081,1736941846464,-151.0,0.00020273,2]
[349023083,1736941846474,-226.384827,0.00020273,2]
[349023085,1736941846484,-151.0,0.00020273,2]
[349023087,1736941846494,-151.0,0.00020273,2]
[349023089,1736941846504,-3834.85,0.00020273,3]
[349023091,1736941846513,-151.0,0.00020273,2]
[349023093,1736941846522,-151.0,0.00020273,2]
[349023095,1736941846531,-500.0,0.00020273,3]
[349023097,1736941846540,-1842.52,0.00020273,3]
[349023099,1736941846549,-500.0,0.00020273,3]
[349023101,1736941846559,-500.0,0.00020273,3]
[349023102,1736941846569,-500.0,0.00020273,3]
[349023103,1736941846579,-500.0,0.00020273,3]
[349023104,1736941846589,-188.263472,0.00020273,2]
[349023105,1736941846598,-188.263472,0.00020273,2]
[349023106,1736941846607,-151.0,0.00020273,2]
[349023107,1736941846616,-151.0,0.00020273,2]
[349023108,1736941846625,-602.34339036,0.00020314,2]
[349023109,1736941846634,-500.0,0.00020324,3]
[349023110,1736941846644,-500.0,0.00020324,2]
[349023111,1736941846653,-581.77834524,0.00020325,3]
[349023112,1736941846663,-500.0,0.00020325,3]
[349023113,1736941846673,-500.0,0.00020325,3]
[349023114,1736941846683,-500.0,0.00020325,3]
[349023115,1736941846692,-504.40002841,0.00020325,3]
[349023116,1736941846701,-504.24510552,0.00020325,3]
[349023118,1736941846711,-503.74009942,0.00020325,3]
[349023120,1736941846720,-500.0,0.00020325,3]
[349023122,1736941846730,-500.0,0.00020325,3]
[349023124,1736941846740,-504.8220294,0.00020325,3]
[349023126,1736941846749,-503.99782654,0.00020325,3]
[349023128,1736941846759,-500.0,0.00020325,3]
[349023130,1736941846768,-500.0,0.00020325,3]
[349023132,1736941846777,-500.0,0.00020325,3]
[349023134,1736941846786,-505.22051995,0.00020325,3]
[349023136,1736941846796,-500.0,0.00020325,3]
[349023137,1736941846804,-509.17864702,0.00020325,3]
[349023139,1736941846814,-500.0,0.00020325,3]
[349023141,1736941846823,-500.0,0.00020325,3]
[349023143,1736941846832,-503.50219391,0.00020325,3]
[349023145,1736941846842,-151.0,0.00020325,2]
[349023148,1736941846852,-500.0,0.00020325,3]
[349023150,1736941846862,-500.0,0.00020325,3]
[349023152,1736941846871,-500.0,0.00020325,3]
[349023154,1736941846882,-500.0,0.00020325,3]
[349023156,1736941846891,-500.0,0.00020325,3]
[349023157,1736941846900,-151.0,0.00020325,2]
[349023160,1736941846910,-151.0,0.00020325,2]
[349023161,1736941846919,-500.0,0.00020325,3]
[349023163,1736941846928,-500.0,0.00020325,3]
[349023165,1736941846937,-500.0,0.00020325,3]
[349023167,1736941846947,-500.0,0.00020325,3]
[349023169,1736941846956,-500.0,0.00020325,3]
[349023171,1736941846966,-500.0,0.00020325,3]
[349023173,1736941846976,-151.0,0.00020325,2]
[349023175,1736941846986,-500.0,0.00020325,3]
[349023178,1736941846996,-500.0,0.00020325,3]
[349023180,1736941847006,-500.0,0.00020325,3]
[349023182,1736941847016,-500.0,0.00020325,3]
[349023184,1736941847025,-500.0,0.00020325,3]
[349023186,1736941847034,-788.64,0.00020325,3]
[349023188,1736941847046,-500.0,0.00020325,3]
[349023190,1736941847055,-662.35,0.00020325,3]
[349023192,1736941847065,-151.0,0.00020325,2]
[349023194,1736941847074,-225.383318,0.00020325,2]
[349023196,1736941847083,-151.0,0.00020325,2]
[349023198,1736941847093,-151.0,0.00020325,2]
[349023200,1736941847102,-151.0,0.00020325,2]
[349023202,1736941847112,-500.0,0.00020325,3]
[349023212,1736941847206,-500.0,0.00020325,3]
[349023214,1736941847217,-500.0,0.00020325,3]
[349023216,1736941847227,-151.0,0.00020325,2]
[349023218,1736941847237,-500.0,0.00020325,3]
[349023220,1736941847248,-500.0,0.00020325,3]
[349023222,1736941847257,-500.0,0.00020325,3]
[349023224,1736941847267,-911.3,0.00020325,3]
[349023226,1736941847277,-500.0,0.00020325,3]
[349023228,1736941847288,-500.0,0.00020325,3]
[349023230,1736941847300,-500.0,0.00020325,3]
[349023232,1736941847309,-500.0,0.00020325,3]
[349023234,1736941847319,-500.0,0.00020325,3]
[349023236,1736941847330,-500.0,0.00020325,3]
[349023238,1736941847339,-500.0,0.00020325,3]
[349023240,1736941847349,-151.0,0.00020325,2]
[349023242,1736941847359,-227.98302942,0.00020325,3]
[349023244,1736941847369,-500.0,0.00020325,3]
[349023246,1736941847378,-502.1132483,0.00020325,3]
[349023248,1736941847388,-500.0,0.00020325,3]
[349023250,1736941847397,-500.0,0.00020325,3]
[349023252,1736941847407,-500.0,0.00020325,3]
[349023254,1736941847417,-500.0,0.00020325,3]
[349023256,1736941847427,-513.59215571,0.00020325,3]
[349023258,1736941847437,-500.0,0.00020325,3]
[349023260,1736941847446,-500.0,0.00020325,3]
[349023262,1736941847457,-500.0,0.00020325,3]
[349023264,1736941847466,-500.0,0.00020325,3]
[349023266,1736941847475,-500.0,0.00020325,3]
[349023268,1736941847485,-500.0,0.00020325,3]
[349023270,1736941847494,-500.0,0.00020325,3]
[349023272,1736941847503,-500.0,0.00020325,3]
[349023274,1736941847512,-636.88515154,0.00020325,3]
[349023276,1736941847521,-151.0,0.00020325,2]
[349023278,1736941847530,-151.0,0.00020325,2]
[349023280,1736941847539,-151.0,0.00020325,2]
[349023282,1736941847552,-151.0,0.00020325,2]
[349023284,1736941847561,-500.0,0.00020325,3]
[349023286,1736941847571,-500.0,0.00020325,3]
[349023288,1736941847581,-151.0,0.00020325,2]
[349023290,1736941847591,-151.0,0.00020325,2]
[349023292,1736941847601,-500.0,0.00020325,3]
[349023294,1736941847612,-500.0,0.00020325,3]
[349023296,1736941847621,-258.478046,0.00020325,2]
[349023298,1736941847631,-500.0,0.00020325,3]
[349023300,1736941847640,-151.0,0.00020325,2]
[349023302,1736941847649,-151.0,0.00020325,2]
[349023304,1736941847659,-151.0,0.00020325,2]
[349023306,1736941847669,-151.0,0.00020325,2]
[349023308,1736941847679,-151.0,0.00020325,2]
[349023310,1736941847688,-151.0,0.00020325,2]
[349023312,1736941847697,-151.0,0.00020325,2]
[349023314,1736941847707,-151.0,0.00020325,2]
[349023316,1736941847718,-263.694119,0.00020325,2]
[349023318,1736941847727,-556.269652,0.00020325,2]
[349023319,1736941847737,-556.269652,0.00020325,2]
[349023321,1736941847747,-556.269652,0.00020325,2]
[349023323,1736941847757,-556.269652,0.00020325,2]
[349023325,1736941847767,-423.422106,0.00020325,2]
[349023327,1736941847776,-423.422106,0.00020325,2]
[349023329,1736941847786,-423.422106,0.00020325,2]
[349023330,1736941847796,-423.422106,0.00020325,2]
[349023332,1736941847805,-500.0,0.00020325,3]
[349023334,1736941847814,-500.0,0.00020325,3]
[349023336,1736941847824,-188.263472,0.00020325,2]
[349023338,1736941847833,-188.263472,0.00020325,2]
[349023340,1736941847843,-151.0,0.00020325,2]
[349023342,1736941847853,-180.311691,0.00020325,2]
[349023344,1736941847863,-500.0,0.00020326,3]
[349023346,1736941847873,-500.0,0.00020326,3]
[349023348,1736941847884,-500.0,0.00020326,3]
[349023350,1736941847893,-500.0,0.00020326,3]
[349023352,1736941847903,-500.0,0.00020326,3]
[349023354,1736941847913,-151.0,0.00020327,2]
[349023356,1736941847922,-151.0,0.00020327,2]
[349023358,1736941847932,-151.0,0.00020327,2]
[349023360,1736941847941,-151.0,0.00020327,2]
[349023362,1736941847951,-500.0,0.0002033,3]
[349023364,1736941847961,-500.0,0.0002033,3]
[349023366,1736941847970,-6408.57,0.00020331,3]
[349023368,1736941847980,-500.0,0.00020331,3]
[349023370,1736941847989,-500.0,0.00020331,3]
[349023372,1736941847999,-5326.98,0.00020331,3]
[349023374,1736941848009,-151.0,0.00020331,2]
[349023376,1736941848018,-151.0,0.00020331,2]
[349023378,1736941848028,-151.0,0.00020331,2]
[349023380,1736941848039,-151.0,0.00020331,2]
[349023382,1736941848050,-161.96782196,0.00020362,2]
[349023384,1736941848060,-151.0,0.000204,4]
[349023386,1736941848070,-574.45,0.00020407,3]
[349023388,1736941848080,-500.0,0.00020407,3]
[349023390,1736941848090,-500.0,0.00020408,3]
[349023392,1736941848100,-500.0,0.00020408,3]
[349023394,1736941848109,-1322.86,0.00020408,3]
[349023396,1736941848122,-852.02,0.00020408,3]
[349023397,1736941848132,-730.97,0.00020408,3]
[349023399,1736941848141,-500.0,0.00020408,3]
[349023401,1736941848151,-500.0,0.00020408,3]
[349023403,1736941848161,-500.0,0.00020408,3]
[349023405,1736941848171,-500.0,0.00020408,3]
[349023407,1736941848180,-904.9,0.00020408,3]
[349023409,1736941848189,-585.34,0.00020408,3]
[349023412,1736941848201,-1623.31,0.00020408,3]
[349023413,1736941848211,-500.0,0.00020408,3]
[349023415,1736941848221,-694.06,0.00020408,3]
[349023418,1736941848232,-500.0,0.00020408,3]
[349023420,1736941848242,-698.14,0.00020408,3]
[349023421,1736941848252,-1005.53,0.00020408,3]
[349023424,1736941848262,-921.61,0.00020408,3]
[349023426,1736941848273,-500.0,0.00020408,3]
[349023427,1736941848283,-500.0,0.00020408,3]
[349023429,1736941848293,-1709.93,0.00020408,3]
[349023431,1736941848302,-500.0,0.00020408,3]
[349023433,1736941848312,-919.73,0.00020408,3]
[349023435,1736941848322,-500.0,0.00020409,3]
[349023437,1736941848332,-151.0,0.00020409,2]
[349023440,1736941848342,-500.0,0.00020409,3]
[349023441,1736941848351,-615.57,0.00020409,3]
[349023443,1736941848361,-583.51,0.00020409,3]
[349023445,1736941848371,-500.0,0.00020409,3]
[349023447,1736941848380,-500.0,0.00020409,3]
[349023449,1736941848390,-500.0,0.00020409,3]
[349023451,1736941848400,-500.0,0.00020409,3]
[349023453,1736941848410,-500.0,0.00020409,3]
[349023455,1736941848420,-500.0,0.00020409,3]
[349023457,1736941848430,-500.0,0.00020409,3]
[349023459,1736941848440,-500.0,0.00020409,3]
[349023461,1736941848450,-500.0,0.00020409,3]
[349023463,1736941848459,-500.0,0.00020409,3]
[349023465,1736941848469,-500.0,0.00020409,3]
[349023467,1736941848479,-500.0,0.00020409,3]
[349023469,1736941848489,-621.45,0.00020409,3]
[349023471,1736941848498,-500.0,0.00020409,3]
[349023473,1736941848508,-500.0,0.00020409,3]
[349023475,1736941848518,-500.0,0.00020409,3]
[349023477,1736941848528,-500.0,0.00020409,3]
[349023479,1736941848538,-500.0,0.00020409,3]
[349023481,1736941848548,-500.0,0.00020409,3]
[349023483,1736941848557,-500.0,0.00020409,3]
[349023484,1736941848568,-151.0,0.00020409,2]
[349023486,1736941848577,-500.0,0.00020409,3]
[349023488,1736941848588,-151.0,0.00020409,2]
[349023490,1736941848598,-500.0,0.00020409,3]
[349023492,1736941848608,-1211.75,0.00020409,2]
[349023494,1736941848618,-500.0,0.00020409,3]
[349023496,1736941848627,-44563.32,0.00020409,3]
[349023499,1736941848637,-151.0,0.00020409,2]
[349023501,1736941848647,-741.96,0.00020409,3]
[349023503,1736941848657,-873.43,0.00020409,3]
[349023504,1736941848667,-500.0,0.00020409,3]
[349023506,1736941848677,-510.83,0.00020409,3]
[349023508,1736941848687,-500.0,0.00020409,3]
[349023510,1736941848697,-500.0,0.00020409,3]
[349023513,1736941848707,-500.0,0.00020409,3]
[349023514,1736941848716,-699.87,0.00020409,3]
[349023516,1736941848727,-500.0,0.00020409,3]
[349023518,1736941848736,-500.0,0.00020409,3]
[349023520,1736941848745,-500.0,0.00020409,3]
[349023522,1736941848755,-151.0,0.00020409,2]
[349023524,1736941848765,-151.0,0.00020409,2]
[349023526,1736941848775,-151.0,0.00020409,2]
[349023535,1736941848854,-284.459281,0.00020409,2]
[349023537,1736941848865,-736.84,0.00020409,3]
[349023540,1736941848876,-500.0,0.00020409,3]
[349023542,1736941848888,-151.0,0.00020409,2]
[349023544,1736941848898,-152.235883,0.00020409,2]
[349023546,1736941848907,-151.0,0.00020409,2]
[349023547,1736941848916,-151.0,0.00020409,2]
[349023549,1736941848926,-687.96,0.00020409,3]
[349023551,1736941848935,-19334.51,0.00020409,3]
[349023554,1736941848945,-500.0,0.00020409,3]
[349023556,1736941848955,-556.269652,0.00020409,2]
[349023558,1736941848965,-556.269652,0.00020409,2]
[349023559,1736941848975,-887.87,0.00020409,3]
[349023561,1736941848985,-556.269652,0.00020409,2]
[349023564,1736941848995,-423.422106,0.00020409,2]
[349023566,1736941849005,-556.269652,0.00020409,2]
[349023567,1736941849015,-423.422106,0.00020409,2]
[349023570,1736941849025,-423.422106,0.00020409,2]
[349023571,1736941849034,-423.422106,0.00020409,2]
[349023573,1736941849044,-619.17,0.00020409,3]
[349023575,1736941849053,-500.0,0.00020409,3]
[349023577,1736941849063,-500.0,0.00020409,3]
[349023579,1736941849073,-188.263472,0.00020409,2]
[349023581,1736941849083,-188.263472,0.00020409,2]
[349023583,1736941849093,-188.263472,0.00020409,2]
[349023585,1736941849103,-188.263472,0.00020409,2]
[349023587,1736941849113,-500.0,0.00020409,3]
[349023589,1736941849127,-151.0,0.00020409,2]
[349023591,1736941849136,-151.0,0.00020409,2]
[349023593,1736941849146,-500.0,0.00020409,3]
[349023595,1736941849156,-500.0,0.0002041,3]
[349023597,1736941849165,-500.0,0.0002041,3]
[349023599,1736941849175,-151.0,0.0002041,2]
[349023601,1736941849185,-500.0,0.0002041,3]
[349023603,1736941849195,-151.862304,0.0002041,2]
[349023604,1736941849205,-597.91,0.0002041,3]
[349023605,1736941849215,-500.0,0.0002041,3]
[349023606,1736941849224,-151.0,0.0002041,2]
[349023607,1736941849234,-151.0,0.0002041,2]
[349023608,1736941849243,-151.0,0.0002041,2]
[349023609,1736941849253,-215.127195,0.0002041,2]
[349023610,1736941849263,-3834.85,0.0002041,3]
[349023612,1736941849274,-151.0,0.0002041,2]
[349023614,1736941849285,-1842.52,0.0002041,3]
[349023616,1736941849295,-500.0,0.0002041,3]
[349023618,1736941849305,-500.0,0.0002041,3]
[349023620,1736941849316,-500.0,0.0002041,3]
[349023622,1736941849327,-500.0,0.0002041,3]
[349023624,1736941849337,-529.13641396,0.00020437,2]
[349023626,1736941849347,-602.34339036,0.00020452,2]
[349023628,1736941849356,-500.0,0.00020462,3]
[349023630,1736941849365,-500.0,0.00020462,3]
[349023632,1736941849376,-151.0,0.00020462,2]
[349023634,1736941849386,-500.0,0.00020462,3]
[349023636,1736941849395,-500.0,0.00020462,3]
[349023638,1736941849405,-500.0,0.00020462,3]
[349023640,1736941849415,-328.70147647,0.00020462,3]
[349023642,1736941849425,-500.0,0.00020462,3]
[349023644,1736941849435,-500.0,0.00020462,3]
[349023646,1736941849444,-500.0,0.00020462,3]
[349023648,1736941849454,-500.0,0.00020462,3]
[349023650,1736941849464,-151.0,0.00020462,2]
[349023652,1736941849473,-500.0,0.00020462,3]
[349023654,1736941849482,-500.0,0.00020462,3]
[349023656,1736941849494,-500.0,0.00020462,3]
[349023658,1736941849504,-500.0,0.00020462,3]
[349023660,1736941849514,-500.0,0.00020462,3]
[349023662,1736941849523,-500.0,0.00020462,3]
[349023664,1736941849533,-573.35015682,0.00020462,3]
[349023666,1736941849542,-500.0,0.00020462,3]
[349023668,1736941849553,-500.0,0.00020462,3]
[349023670,1736941849563,-500.0,0.00020462,3]
[349023672,1736941849572,-500.0,0.00020462,3]
[349023674,1736941849582,-788.64,0.00020462,3]
[349023676,1736941849591,-500.0,0.00020462,3]
[349023678,1736941849601,-662.35,0.00020462,3]
[349023680,1736941849611,-500.0,0.00020462,3]
[349023682,1736941849620,-500.0,0.00020462,3]
[349023684,1736941849630,-500.0,0.00020462,3]
[349023686,1736941849640,-305.43559022,0.00020462,3]
[349023688,1736941849649,-500.0,0.00020462,3]
[349023690,1736941849658,-911.3,0.00020462,3]
[349023692,1736941849667,-500.0,0.00020462,3]
[349023694,1736941849678,-500.0,0.00020462,3]
[349023696,1736941849688,-500.0,0.00020462,3]
[349023698,1736941849697,-500.0,0.00020462,3]
[349023700,1736941849707,-500.0,0.00020462,3]
[349023702,1736941849721,-500.0,0.00020462,3]
[349023704,1736941849731,-500.0,0.00020462,3]
[349023706,1736941849742,-151.0,0.00020462,2]
[349023708,1736941849751,-500.0,0.00020462,3]
[349023710,1736941849761,-500.0,0.00020462,3]
[349023713,1736941849771,-500.0,0.00020462,3]
[349023715,1736941849780,-500.0,0.00020462,3]
[349023717,1736941849790,-500.0,0.00020462,3]
[349023719,1736941849801,-500.0,0.00020462,3]
[349023721,1736941849811,-500.0,0.00020462,3]
[349023723,1736941849820,-151.0,0.00020462,2]
[349023725,1736941849829,-500.0,0.00020462,3]
[349023726,1736941849838,-500.0,0.00020462,3]
[349023729,1736941849848,-151.0,0.00020462,2]
[349023731,1736941849857,-500.0,0.00020462,3]
[349023733,1736941849867,-151.0,0.00020462,2]
[349023735,1736941849879,-151.0,0.00020462,2]
[349023737,1736941849889,-556.269652,0.00020462,2]
[349023739,1736941849899,-556.269652,0.00020462,2]
[349023741,1736941849910,-423.422106,0.00020462,2]
[349023743,1736941849920,-423.422106,0.00020462,2]
[349023745,1736941849930,-500.0,0.00020462,3]
[349023747,1736941849940,-188.263472,0.00020462,2]
[349023749,1736941849949,-188.263472,0.00020462,2]
[349023751,1736941849959,-151.0,0.00020462,2]
[349023753,1736941849968,-151.0,0.00020463,2]
[349023755,1736941849978,-498.94049671,0.00020463,3]
[349023757,1736941849987,-167.328493,0.00020464,2]
[349023759,1736941849997,-163.897828,0.00020464,2]
[349023761,1736941850006,-6408.57,0.00020468,3]
[349023763,1736941850016,-500.0,0.00020468,3]
[349023765,1736941850025,-500.0,0.00020468,3]
[349023767,1736941850035,-5326.98,0.00020468,3]
[349023769,1736941850045,-151.0,0.00020468,2]
[349023771,1736941850055,-500.0,0.00020473,2]
[349023773,1736941850064,-500.0,0.00020473,2]
[349023775,1736941850074,-500.0,0.00020473,2]
[349023777,1736941850084,-160.09978566,0.00020473,2]
[349023779,1736941850094,-160.10477672,0.00020473,2]
[349023781,1736941850105,-622.54326643,0.00020473,2]
[349023783,1736941850116,-249.92427362,0.00020473,2]
[349023785,1736941850128,-266.24790376,0.00020473,2]
[349023787,1736941850138,-151.08182225,0.00020473,2]
[349023789,1736941850148,-160.09774865,0.00020473,2]
[349023791,1736941850158,-180.11353939,0.00020473,2]
[349023793,1736941850168,-280.04984244,0.00020473,2]
[349023795,1736941850178,-167.59953293,0.00020473,2]
[349023797,1736941850187,-556.62200808,0.00020473,2]
[349023799,1736941850198,-500.0,0.00020473,2]
[349023801,1736941850207,-500.0,0.00020473,2]
[349023803,1736941850218,-246.605425,0.00020473,2]
[349023805,1736941850228,-151.0,0.00020473,2]
[349023807,1736941850237,-151.0,0.00020473,2]
[349023809,1736941850247,-556.269652,0.00020473,2]
[349023811,1736941850257,-556.269652,0.00020473,2]
[349023813,1736941850267,-423.422106,0.00020473,2]
[349023816,1736941850277,-423.422106,0.00020473,2]
[349023818,1736941850287,-151.0,0.000205,4]
[349023820,1736941850298,-151.0,0.000205,3]
[349023821,1736941850307,-209.473462,0.00020521,2]
[349023830,1736941850317,-574.45,0.00020544,3]
[349023832,1736941850394,-500.0,0.00020544,3]
[349023834,1736941850404,-500.0,0.00020545,3]
[349023837,1736941850414,-1322.86,0.00020545,3]
[349023839,1736941850423,-852.02,0.00020545,3]
[349023841,1736941850434,-730.97,0.00020545,3]
[349023843,1736941850443,-500.0,0.00020545,3]
[349023845,1736941850453,-500.0,0.00020545,3]
[349023847,1736941850463,-500.0,0.00020545,3]
[349023849,1736941850472,-500.0,0.00020545,3]
[349023851,1736941850482,-904.9,0.00020545,3]
[349023853,1736941850492,-585.34,0.00020545,3]
[349023855,1736941850502,-1623.31,0.00020545,3]
[349023857,1736941850512,-500.0,0.00020545,3]
[349023859,1736941850522,-694.06,0.00020545,3]
[349023861,1736941850532,-500.0,0.00020545,3]
[349023863,1736941850541,-698.14,0.00020545,3]
[349023865,1736941850552,-1005.53,0.00020545,3]
[349023867,1736941850562,-921.61,0.00020545,3]
[349023869,1736941850572,-500.0,0.00020545,3]
[349023871,1736941850583,-1709.93,0.00020545,3]
[349023873,1736941850592,-500.0,0.00020545,3]
[349023875,1736941850602,-500.0,0.00020545,3]
[349023877,1736941850611,-919.73,0.00020545,3]
[349023879,1736941850620,-188.263472,0.00020545,2]
[349023881,1736941850630,-188.263472,0.00020545,2]
[349023884,1736941850640,-151.0,0.00020545,2]
[349023886,1736941850651,-500.0,0.00020546,3]
[349023888,1736941850661,-500.0,0.00020546,3]
[349023889,1736941850671,-615.57,0.00020546,3]
[349023892,1736941850680,-583.51,0.00020546,3]
[349023894,1736941850691,-500.0,0.00020546,3]
[349023895,1736941850700,-500.0,0.00020546,3]
[349023898,1736941850710,-500.0,0.00020546,3]
[349023899,1736941850720,-500.0,0.00020546,3]
[349023902,1736941850730,-500.0,0.00020546,3]
[349023904,1736941850740,-500.0,0.00020546,3]
[349023906,1736941850750,-500.0,0.00020546,3]
[349023908,1736941850760,-598.09249361,0.00020546,3]
[349023910,1736941850769,-500.0,0.00020546,3]
[349023912,1736941850778,-454.84531321,0.00020546,3]
[349023914,1736941850788,-151.0,0.00020546,2]
[349023916,1736941850801,-500.0,0.00020546,3]
[349023918,1736941850811,-500.0,0.00020546,3]
[349023920,1736941850821,-621.45,0.00020546,3]
[349023922,1736941850830,-500.0,0.00020546,3]
[349023924,1736941850840,-500.0,0.00020546,3]
[349023926,1736941850850,-500.0,0.00020546,3]
[349023928,1736941850859,-500.0,0.00020546,3]
[349023930,1736941850869,-500.0,0.00020546,3]
[349023932,1736941850879,-500.0,0.00020546,3]
[349023934,1736941850889,-500.0,0.00020546,3]
[349023936,1736941850899,-500.0,0.00020546,3]
[349023938,1736941850909,-500.0,0.00020546,3]
[349023940,1736941850918,-1211.75,0.00020546,2]
[349023942,1736941850928,-500.0,0.00020546,3]
[349023944,1736941850937,-44563.32,0.00020546,3]
[349023946,1736941850947,-741.96,0.00020546,3]
[349023948,1736941850957,-873.43,0.00020546,3]
[349023950,1736941850967,-500.0,0.00020546,3]
[349023952,1736941850976,-510.83,0.00020546,3]
[349023954,1736941850985,-500.0,0.00020546,3]
[349023956,1736941850995,-500.0,0.00020546,3]
[349023958,1736941851005,-500.0,0.00020546,3]